{"text_format":"3","workbook":"xlsx","n_sheets":2,"sheets":["Foglio1","ADVANCE PAYMENT DETAILS"],"not_rendered":{"images":3},"read":"whole","date_system":"1900"}

{"sheet":"Foglio1","index":0,"n_rows":312,"n_cols":6,"rows_kept":312,"merged":[[3,0,9,4],[10,0,14,4]]}
[]
[]
[]
["Veuillez noter que les prix sont sujets à changement sans préavis tel que décidé par notre supermarché/fournisseur local.   De plus, certains articles peuvent ne pas être disponibles, remplacés par d'autres ou la taille peut différer de la liste.Bien que nous soyons ravis chez Dream Yacht de fournir à nos clients ce service pour faciliter le début des vacances, cela peut ne pas convenir à  tout le monde :   Si vous n'êtes pas à l'aise avec les  \"incertitudes\" ci-dessus, notre base se fera un plaisir de vous diriger vers le supermarché le plus proche. Aucun produit ne sera repris/remboursé en fin de croisière.\n"]
[]
[]
[]
[]
[]
[]
["Please note that prices are subject to change without notice as decided by our local supermarket/supplier. Additionally, some items may not be available, substituted for others or the size may differ from the listing. While we at Dream Yacht are delighted to provide our customers with this service to facilitate the start of the vacation, this may not be suitable for everyone: If you are not comfortable with the \"uncertainties\" above, our base will be happy to direct you to the nearest supermarket. No product will be taken back/refunded at the end of the cruise."]
[]
[]
[]
[]
[]
[]
[null,"MARIA ",3389054827]
["*------","PIER PAOLO",3665069439]
[null,"piemarketsanpantaleo.it"]
[null,"sanpantaleo@gmail.com"]
[null,"IBAN:  IT09C0100584980000000005857"]
[null,"SWITF/BIC","BNLIITR"]
[]
["for more information,please contact Maria by text via whatapp/mail - the payment of thew shopping must be done"]
[" in advance - thank you very much"]
["pour plus d'informations, contactez Maria par ecrit avec whatapp/ mail-","mail-le reglement des coueses doit se faire "]
["a l'avance- merci beaucoup"]
[]
["BEVANDE ","DIMENSIONE","PREZZO ","QUANTITA'","TOTALE"]
["SPARKLIN WATER- EAU PETILLANT","1,5LT",0.75,null,{"$f":"D31*C31","v":0}]
["NATURAL WATER- EAU","1,5LT",0.65,null,{"$f":"D32*C32","v":0}]
["SPARKLIN WATER- EAU PETILLANT","0,5LT",0.35,null,0]
["EFFERVESCENT WATER-EAU EFFERVESCENTE","1,5LT",1.2,null,0]
["NATURAL WATER- EAU","0,5LT",0.35,null,0]
["BEER CAN THURINGER-  CANETTE DE BIERE THURINGER","33CL",1,null,0]
["BEER CAN JCHNUSA - CANETTE DE BIERE JCHNUSA","33CL",1.5,null,0]
["BEER CAN HEINEKEN -  CANETTE DE BIERE HEINEKEN","33CL",1.95,null,0]
["BEER CORONA GLASS - BIERE EN VERRE CORONA ","33CL",2.5,null,0]
["BEER BECK'S GLASS - BIERE EN VERRE BECK'S ","3X33 CL",4.95,null,0]
["GLUTEN FREE BEER- BIERE SANS GLUTEN","3X33CL",5.5,null,0]
["NON ALCOHOLIC BEER-BIERE SANS ALCOOL","3X33CL",5.5,null,0]
["COCA COLA BOITE - CAN","33CL",1,null,0]
["COCA COLA ZERO BOITE - CAN","33CL",1,null,0]
["FANTA BOITE - CAN","33CL",1,null,0]
["SPRITE BOITE - CAN","33CL",1,null,0]
["CHINOTTO CAN","33,CL",1,null,0]
["TONIC WATER CAN- EAU TONIQUE EN CANETTE","33CL",1,null,0]
["LEMONADE CAN-LIMONADE EN CANETTE","33CL",1,null,0]
[" ORANGE JUICE- JUS D' ORANGE","1LT",2.95,null,0]
["ANANAS JUICE- JUS D'ANANAS","1LT",2.95,null,0]
["APPLE JUICE-JUS DE POMME","1LT",2.95,null,0]
["ACE JUCE- JUS ACE","1 LT",2.95,null,0]
["LEMON TEA CAN- THE AU CITRON EN CANETTE","33CL",1,null,0]
["PEACH TEA CAN- THE A LA PECHE CANNETTE","33CL",1,null,0,"SUBTOTALE"]
["WINE-VIN/ALCOHOL-ALCOOL","DIMENSIONE","PREZZO ","QUANTITA'","TOTALE",{"$f":"SUM(E31:E55)","v":0}]
["RED WINE- VIN ROUGE","70CL",9.95,null,0]
["RED WINE- VIN ROUGE","70CL",15.95,null,0]
["WHITE VINE-VIN BLANC","70CL",9.95,null,0]
["WHITE VINE-VIN BLANC","70CL",15.95,null,0]
["ROSE WINE-VIN ROSE'","70CL",9.95,null,0]
["ROSE WINE-VIN ROSE'","70CL",19.95,null,0]
["CHAMPAGNE VEUVE C YELL.LAB","70CL",75,null,0]
["BUBBLY WINE FERRARI- VIN PETILLANT FERRARI","70CL",29.95,null,0]
["PROSECCO","70CL",14.95,null,0]
["BACARDI WHITE RUM- BACARDO RUM BLANC","70CL",18.95,null,0]
["BACARDI GOLD RUM- BACARDI RUM BRUN","70CL",18.95,null,0]
["VODKA ABSOLUT","70CL",19.95,null,0]
["GIN BOMBAY SAPPHIRE/TANQUERRY","70CL",24.95,null,0]
["RED MIRTO-MIRTO ROUGE","70CL",16.95,null,0]
["LIMONCELLO","70CL",16.95,null,0]
["CAMPARI","1LT",23.95,null,0]
["PASTIS","LT",25,null,0]
["APEROL","70CL",15.95,null,0]
[" SARDINIA GRAPPA- GRAPPA","70CL",19.95,null,0]
["WHISKY JB","70CL",19.9,null,0]
["MARTINI VERMOUTH WHITE- MARTINI VERMOUTH BLANC","70CL",12.95,null,0]
["MARTINI VERMOUTH RED- MARTINI VERMOUTH ROUGE","70CL",12.95,null,0]
["TEQUILA","70CL",23.95,null,0]
["RED BULL CAN.","25CL",2.5,null,0,"SUBTOTALE"]
["ICE CUBES- GLACONS","KG",2.5,null,0]
["BREAKFAST-PETIT DEJEUNER","DIMENSIONE","PREZZO","QUANTITA'","TOTALE",{"$f":"SUM(E57:E81)","v":0}]
["GRINDED COFFEE- CAFE' MOULU","250GR",5.95,null,0]
["NESCAFE' ","100GR",7.95,null,0]
["TEA BAG- SACHETS DE THE'","25PCS",4.95,null,0]
["HERBAL TEA- TISANES","25PCS",4.95,null,0]
["NESPRESSO CAPSULE","10PCS",5.95,null,0]
["NESQUIK","250GR",3.95,null,0]
["APRICOT JAM - CONFITURE D'ABRICOT","350GR",3.5,null,0]
["ORANGE JAM- CONFITURE D'ORANGE","350GR",3.5,null,0]
["CHERRY JAM- CONFITURE DE CERISES","350GR",3.5,null,0]
["FIG JAM - CONFITURE FIGUES","350GR",4.5,null,0]
[" STRAWBERRY JAM . CONFITURE FRAISE","350GR",3.5,null,0]
["BERRY JAM-CONFITURE DE BAIES","250GR",4.95,null,0]
["PEACH JAM-CONFITURE DE PECHES","350GR",3.5,null,0]
["SARDINIA HONEY- MIEL DE SARDAIGNE","250GR",6.95,null,0]
["NUTELLA","400GR",5.99,null,0]
["CORN FLAKES","375GR",3.95,null,0]
["KELLOG'S CHOCO POP'S","375GR",5.5,null,0]
["MUESLI","300GR",3.95,null,0]
["RUSKS- BISCOTTES","250GR",2.95,null,0]
["BISCUITS","300GR",2.95,null,0]
["CHOLOLATE BISCUIT- BISCUITS AU CHOCOLAT","300GR",3.5,null,0]
["NATURAL CROISSANT- CROISSANT NATURE","250GR",2.95,null,0]
[" CHOCOLATE CROISSANT- CROISSANT AUX CHOCOLAT","250GR",3.5,null,0]
[" APRICOT CROISSANT- CROISSANT AUX ABRICOTS","250GR",3.5,null,0]
["CHERRY CROISSANT- CROISSANT AUX CERISES","250GR",3.5,null,0]
["OAT FLAKES-GRUAU","500GR",5.95,null,0]
["GLUTENFREE BISCUITS-BISCUITS SANS GLUTEN","200GR",3.95,null,0]
["GLUTEN FREE RUSKS- BISCOTTES SANS GLUTEN","260GR",5.95,null,0]
["GLUETN FREE SWEET SNACK- COLLATIONS SANS GLUTEN","150GR",4.5,null,0,"SUBTOTALE"]
[" BREAD AND BAKED GOODS-PAIN ET PATISSERIES","DIMENSIONE ","PREZZO","QUANTITA'","TOTALE",{"$f":"SUM(E83:E111)","v":0}]
["CRACKERS","500GR",3.5,null,0]
["BREADSTICKS- GRESSINS","300GR",2.95,null,0]
["SLICED BREAD BROWN-PAIN COMPLET TRANCHE'","400GR",2.95,null,0]
["SLICED SOFT BREAD- PAIN DE MIE","400GR",2.5,null,0]
["BREAD HAMBURGER-PAIN HAMBURGER","6PCS",3.5,null,0]
["FRESH BREAD-BAGUETTES","KG",7.99,null,0]
["RICE CRACKERS-BISCUITA AU RIZ","150GR",2.5,null,0]
["SARDINIA BREAD-PAIN SARDE","400GR",3.99,null,0]
["PIADINA","300GR",1.95,null,0]
["TARALLI","300GR",1.95,null,0]
["CROUTON- CROSTINO","250GR",3.95,null,0]
["SLICED GLUTEN FREE BREAD- PAIN SANS GLUTEN","400GR",4.95,null,0,"SUBTOTALE"]
["SNACK","DIMENSIONE ","PREZZO ","QUANTITA'","TOTALE",{"$f":"SUM(E113:E124)","v":0}]
["CHIPS","400GR",4.95,null,{"$f":"D126*C126","v":0}]
["PRINGLES PAPRIKA","175GR",3.5,null,0]
["PRIGLES ORIGINAL","175GR",3.5,null,0]
["BRETZELS","400GR",3.95,null,0]
["GREEN OLIVE-OLIVES VERTES","110GR",1.2,null,0]
["BLACK OLIVE- OLIVES BLANC","150GR",1.95,null,0]
["TAGGIASCHE OLIVES","150GR",5.95,null,0]
["SALATED PEANUTS-CACAHUETES SALEES","250GR",3.95,null,0]
["HAZELNUT-NOISETTES","200GR ",5.99,null,0]
["PISTACHIOS- PISTACHES","200GR",6.95,null,0]
["SHELLED WALNUTS- NOIX DECORTIQUEES","70GR",2.5,null,0]
["ALMONDS-AMANDES","200GR",3.95,null,0]
["DARK CHOCOLATE-CHOCOLAT NOIR","100GR",2.5,null,0]
["MILK CHOCOLATE-CHOCOLAT AU LAIT","100GR",2.5,null,0]
["MIXED SARDINIA SWEETS- BONBONS SARDES MELANGES","500GR",9.95,null,0,"SUBTOTALE"]
["FRUITS AND VEGETABLES- FRUITS ET LEGUMES","DIMENSIONE","PREZZO","QUANTITA'","TOTALE",{"$f":"SUM(E126:E140)","v":0}]
["OINGNON - ONION","KG",1.99,null,0]
["OIGNON FRAIS - SPRING ONION","KG",2.5,null,0]
["AIL - GARLIC","KG",9.5,null,0]
["LEMON-CITRON","KG",1.99,null,0]
["LIME","KG",6.95,null,0]
["CELERI - CELERY","pz",1.99,null,0]
[" BASIL- BASILIC","PIECE",1.99,null,0]
["ROCKET SALAD-SALADE DE ROCHETTE","PIECE",2.5,null,0]
[" PARSLEY- PERSIL","PIECE",1,null,0]
["LETTUCE-LAITUE","KG",2.5,null,0]
[" POTATOES - POMMES DE TERRE - ","KG",1.95,null,0]
[" CARROT- CAROTTES","KG",1.95,null,0]
[" EGGPLANT - AUBERGEINE","KG",1.95,null,0]
[" TOMATOES - TOMATES","KG",2.99,null,0]
["CHERRY TOMATOES - TOMATE CERISE ","KG",5.99,null,0]
[" CONCONBER - CONCOMBRE","KG",1.99,null,0]
["PEPPER - POIVRON ","KG",3.99,null,0]
[" ZUCCHINI - COURGETTE","KG",2.99,null,0]
["PEACH-PECHE","KG",3.99,null,0]
["NECTARINES","KG",3.99,null,0]
["PERRY-POIRES","KG",3.99,null,0]
["ORANGES","KG",2.99,null,0]
["GROPEFRUIT-PAMPLEMOUSSE","KG",2.95,null,0]
["GRAPE-RAISIN","KG",5.95,null,{"$f":"D165*C165","v":0}]
["WATERMELON-PASTEQUE","KG",1.99,null,{"$f":"D166*C166","v":0}]
["MELON","KG",1.99,null,0]
["BANANA","KG",2.5,null,0]
["ANANAS","KG",3.95,null,0]
["MANGO","PIECE",3.95,null,0]
["AVOCADOS","PIECE",3.5,null,0]
["KIWI","KG",3.99,null,0]
["APPLE-POMMES","KG",3.99,null,0,"SUBTOTALE"]
["AROMI-SPICES-EPICES","DIMENSIONI ","PREZZO","QUANTITA' ","TOTALE ",{"$f":"SUM(E142:E173)","v":0}]
["FRESH MINT-MENTHE FRAICHE","PIECE",2.5,null,0]
["PICKLED CAPERS-CAPRES MARINEES","300GR",2.99,null,0]
["FRESH ROSEMARY-ROMARIN FRAIS","PIECE",2.95,null,0]
[" DRIED ORIGAN-ORIGAN SECHE'","8GR",1.95,null,0]
["DRIED CHILI PEPPER-PIMENT SECHE'","25GR",2.5,null,0]
["SAFFRON-SAFRAN","X3PIECE",4.95,null,0]
[" PEPPER- POIVRE","28GR",1.95,null,0]
["DRIEDSAGE- SAUSAGE SECHE'","8GR",2.5,null,0,"SUBTOTALE"]
["CURRY","35GR",1.95,null,0]
["CURCUMA","35GR",1.95,null,0]
["LATTICINI","DIMENSONI","PREZZO","QUANTITA'","TOTALE",{"$f":"SUM(E175:E184)","v":0}]
["NATURAL YOGURT- YOGURT NATURE","2X125GR",1.45,null,0]
["FRUIT YOGURT- YOGURT AUX FRUITS","2X125GR",1.65,null,0]
["YOGURT 0%","2X125GR",1.45,null,0]
["GREEK YOGURT- YOGURT GREC","2X125GR",1.95,null,0]
["LACTOSE FREE YOGURT- YOGURT SANS LACTOSE","2X125GR",1.5,null,0]
["LACTOSE FREE FRUITS YOGURT- YOGURT AUX FRUITS SANS LACTOS","2X125GR",1.75,null,0]
["BUTTER- BEURRE","250GR",3.5,null,0]
["BUTTER WITH SALT-BEURRE DEMI SEL","250GR",5.99,null,0]
["LACTOSE-FREE BUTTER- BEURRE SANS LACTOSE","125GR",2.5,null,0]
["WHOLE MILK- LAIT ENTIER","1LT",2.5,null,0]
["SEMI SKIMMED MILK-LAIT DEMI ECREME'","1LT",1.95,null,0]
["LACTOSE-FREE MILK- LAIT SANS LACTOSE","1LT",2.5,null,0]
["SOYA MILK- LAIT DE SOJA","1LT",3.5,null,0]
["AVENA'S MILK- LAIT D'AVOINE","1LT",3.95,null,0]
["BRIE","200GR",5.95,null,0]
["FETA","200GR",5.95,null,0]
["EMMENTHAL","250GR",4.95,null,0]
["SLICED EDAMER-EDAMER TRANCHEE'","100GR",2.5,null,0]
["PHILADELPHIA","250GR",4.99,null,0]
["MOZZARELLA","100GR",1.95,null,0]
["LACTOSE-FREE MOZZARELLA- MOZZARELLA SANS LACTOSE","100GR",2.25,null,0]
["PARMESAN CHEESE- PARMESAN","PIECE 250GR",9.95,null,0]
["PARMESAN RAPE' - GRATED PARMESAN","100GR",2.95,null,0]
["GRANA PADANO","PIECE 200GR",7.95,null,0]
["PIECE PECORINO CHEESE-TRANCHE DE FROMAGE PECORINO","200GR",6.95,null,0]
["CREAM CHEESE- FORMAGE A LA CREME","200GR",4.95,null,0]
["ROBIOLA - STRACCHINO","100GR",3.95,null,0]
["EGGS-OEUF","X 6",1.95,null,0,"SUBTOTALE"]
["SALSE PRONTE-READY SAUCES-SAUCES PRETES","DIMENSIONI ","PREZZO ","QUANTITA'","TOTALE",{"$f":"SUM(E186:E213)","v":0}]
["BASIL SAUCE- SAUCE BASIL","400GR",3.5,null,0]
["BOLOGNESE SAUCE- SAUCE BOLOGNAISE","400GR",3.95,null,0]
["PESTO SAUCE- SAUCE PESTO","190GR",3.5,null,{"$f":"D217*C217","v":0},"SUBTOTALE"]
[null,"DIMENSIONI","PREZZO","QUANTITA'","TOTALE",{"$f":"SUM(E215:E217)","v":0}]
["POWDER SUGAR- SUCRE PUDRE","1KG",1.95,null,0]
[" SWEETMER- SUCRETTES A ASPARTAM ","40BS",3.99,null,0]
["SALT - SEL","KG",0.5,null,0]
["OLIVE OIL - HUILE D'OLIVE","1LT",10.95,null,0]
["EXTRA V. OLIVE OIL- HUILE EXTRA V.","1LT",13.95,null,0]
["SEED OIL- HUILE DE GRAINES","1LT",2.5,null,0]
[" WINE VINEGAR- VINAIGRE DE VIN","0,5LT",1.85,null,0]
[" BALSAMIC VINEGAR- VINAIGRE BALSAMIQUE","0,5LT",3.95,null,0]
["BEEF STOCK CUBE -  CUBE DE BOUILLON DE  VIANDE"," 10 CB",1.65,null,0]
[" VEGETABLE STOCK - CUBE DE BOUILLON DE LEGUMES","10CB",1.65,null,0]
["GLUTEN FREE FLOUR-FARINE SANS GLUTEN","KG",4.95,null,0]
["FLOUR - FARINE","1KG",1.65,null,0]
[" SOY SAUCE - SAUCE SOJA","150ML",4.95,null,0]
["KETCHUP ","250ML",2.5,null,0]
["MAYONNAISE","250ML",2.95,null,0]
[" MUSTARD - MOUTARDE","240GR",4.95,null,0]
["TABASCO",null,4.5,null,0]
["SHORTS PASTA - PATES COURTES ","500GR",1.65,null,0]
["SPAGHETTI","500GR",1.65,null,0]
[" RICE - RIZ","500GR",2.95,null,0]
[" PEELED TOMATOES - TOMATES PELEES","400GR",1.3,null,0]
["TOMATO CONCENTRATE - CONCENTRE' DE TOMATE","150GR",1.45,null,0]
["TOMATO PUREE - PUREE DE TOMATES","700GR",1.95,null,0]
["DICED TOMATO- TOMATE EN DE'","400GR",1.45,null,0]
["BREADCRUMBS - CHAPELURE ","500GR",1.95,null,0,"SUBTOTALE"]
["SCATOLAME-CANNED GOODS-PRODIUTS EN CONSERVE","DIMENSIONI","PREZZO","QUANTITA'","TOTALE",{"$f":"SUM(E219:E243)","v":0}]
["MAIS-CORN","300GR",1.95,null,0]
[" WHITE BEANS- HARICOTS BLANCS","400GR",1.2,null,0]
[" RED BEANS- HARICOTS ROUGE","400GR",1.2,null,0]
[" GREEN BEANS- HARICOTS VERTS","400GR",1.95,null,0]
[" LENTILS - LENTILLES ","400GR",1.2,null,0]
["PISELLI- PETITS POIS","400GR",1.5,null,0]
[" CHICKPEA- POIS CHICHE","400GR",1.2,null,0]
[" LEGUMI SOAP- SOUPE DE LEGUMIN ","545GR",3.95,null,0]
[" MACKEREL OIL- MAQUEREAU A HUILE","125GR",3.95,null,0]
[" SARDINE OIL- SARDINES A L'HUILE","120GR",2.95,null,0]
[" NATURAL TUNA - THON NATURE ","3X80GR",4.99,null,0]
["THUNA IN OIL - THON A HUILE","3X80GR",4.99,null,0]
[" TUNA FILLETS IN OIL - FILET DE THON A L'HUILE","150gr",8.95,null,0]
[" ANCHOVIES IN OIL- ANCHOIS A L'HUILE","80GR",3.99,null,0]
["WHOLE BOTTARGA- POUTARGUE ENTIERE","PIECE",15,null,{"$f":"D259*C259","v":0}]
["BOTTARGA RAPEE - GRATED BOTTARGA","40GR",6.95,null,0]
["SIMMENTHAL ","3X90GR",6.95,null,0,"SUBTOTALE"]
[null,"DIMENESIONI","PREZZO","QUANTITA'","TOTALE",{"$f":"SUM(E245:E261)","v":0}]
["BAKED HAM - JAMBON CUIT","100GR",5.5,null,0]
["RAW HAM - JAMBON CRU ","70GR",5.95,null,0]
["SALAMI","100GR",3.95,null,0]
["BACON","250GR",6.95,null,0]
["MORTADELLA","100GR",3.5,null,0]
["WURSTEL","250GR",3.5,null,0]
["SALAMI","PIECE",5.95,null,0]
[" DRIED SAISAGE- SAUSAGE SECHE ","PIECE",12,null,0]
[" TURKEY- TURQUIE -","100GR",5.95,null,0]
["BRESAOLA","100GR",6.95,null,0]
["SLICED BACON - BACON TRANCHE' -","100gr",3.95,null,0]
["CARNE -MEAT-VIANDE",{"$nulls":3},0]
["PORCHETTA GALLURESE(maiale cotto a tranci)","KG",28.9,null,0]
["PORC CUIT EN TRANCHES","KG",28.9,null,0]
["PORK COOKED IN SLICES","KG",28.9,null,0]
["CHICKEN THIGHS- CUISSE DE POULET","KG",7.95,null,0]
["CHICKEN DRUMSTICKS-PILONS DE POULET","KG",9.95,null,0]
["SLICED CHICKEN BREAST- POITRINE DE POULET TRANCHE'E","KG",18.95,null,0]
["MINCED BEEF- VEAU HACHE'","KG",19.95,null,0]
[" SLICES OF VEAL- TRANCHES DE VIEAU","KG",22.95,null,0]
[" SIRLOIN- ALOYAU","KG",34.95,null,0]
["FILLET BEEF- FILT DE BOEUF","KG",54.9,null,0]
["NATURAL HAMBURGER","KG",21.95,null,0]
["FRESH PORK SAUSAGE- SAUCISSE DE PORC FRAICHE","KG",10.95,null,0]
["RACK OF PORK RIBS- GRILLE DE COTES DE PORC","KG",12.95,null,0]
["PORK FILLET - FILET DE PORC","KG",19.95,null,0]
["MIX OF MEAT PORK TO BE GRILLED","KG",14.95,null,0,"SUBTOTALE"]
["CASALIGHI-HOUSESEKEEPPING-ARTICLES MENAGERS","DIMENSIONI","PREZZO","QUANTITA'","TOTOTALE",{"$f":"SUM(E263:E289)","v":0}]
[" DISH SOAP-PRODUIT VAISELLE","500ML",2.5,null,0]
[" DEGREASER DETERGENT- DEGRAISSANT","SPRAY",3.5,null,0]
[" GARBAGE BAG 50X70 - SACS POUBELLE","20P",1.5,null,0]
[" GARAGE BAG 70X110 - SACS POUBELLE","20P",3.99,null,0]
[" GREASEPROOF PAPER- PAPIER SULFURISE' ",null,3.95,null,0]
["FILM ALIMENTAIRE - CLING FILM","20MT",1.95,null,0]
["FILM ALUMINIUM - ALUMINIUM FILM","10MT",3.5,null,0]
[" DISHWASHING SPONGE - EPONGE","X2",1.95,null,0]
[" PAPER NAPKINS- PAPIER SCOTTEX","X2",3.95,null,0]
[" WASHING CLOTH - TISSU EPONGE ","x1",2.95,null,0]
[" LAUNDRY DETERGENT- LESSIVE","750ML",3.95,null,0]
[" DISHWASHER TABLETS- LAVE-VAISELLINE","X 15",5.95,null,0]
["BIO CUPS- GOBELETES EN PLASTIQUE BIO-","X50",2.5,null,0]
[" BIO PLASTIC DISHES- BIO PLASTIC CUPS","X50",8.95,null,0]
[" PAPER TOWELS- SOPALIN","X50",2.5,null,0]
[" TOILET PAPER- PAPIER TOILETTES","X4",4.99,null,0]
["TOILET PAPER - PAPIER TOILETTES","X10",5.95,null,0]
[" HAND SOAP- SAVON POUR LE MAINS","250ML",3.5,null,0]
["SHAMPOO","250ML",3.95,null,0]
[" SHOWER GEL- GEL DOUCHE ","500ML",4.95,null,0,"SUBTOTALE"]
["AUTAN TROPICAL SPRAY","100ML",7.95,null,0,{"$f":"SUM(E291:E311)","v":0}]
[{"$nulls":4},"TOTALE ",{"$f":"SUM(F311+F290+F262+F244+F218+F214+F185+F174+F141+F112+F82+F56+F125)","v":0}]

{"sheet":"ADVANCE PAYMENT DETAILS","index":1,"n_rows":0,"n_cols":0,"rows_kept":0}